[Event "*** SCC Grand Prix: Titled Tuesday Blitz"]
[Site "Chess.com"]
[Date "2020.10.13"]
[Round "3"]
[White "karwowskikacper"]
[Black "Chamal_Gedgafov"]
[Result "1-0"]
[WhiteElo "2331"]
[BlackElo "2161"]
[TimeControl "180+1"]
[EndTime "10:29:06 PDT"]
[Termination "karwowskikacper won by resignation"]

1. c4 {[%clk 0:03:00.9]} 1... Nf6 {[%clk 0:02:23.1]} 2. Nc3 {[%clk 0:02:59.6]}
2... c5 {[%clk 0:02:20.9]} 3. e4 {[%clk 0:02:56.3]} 3... d6 {[%clk 0:02:20]} 4.
Nge2 {[%clk 0:02:54.8]} 4... g6 {[%clk 0:02:20.9]} 5. d4 {[%clk 0:02:53.1]} 5...
Bg7 {[%clk 0:02:21.8]} 6. dxc5 {[%clk 0:02:52.8]} 6... Qa5 {[%clk 0:02:10.9]} 7.
cxd6 {[%clk 0:02:46.1]} 7... Nxe4 {[%clk 0:02:06]} 8. dxe7 {[%clk 0:02:44.2]}
8... Nxc3 {[%clk 0:01:56.1]} 9. Qd8+ {[%clk 0:02:39.3]} 9... Qxd8 {[%clk
0:01:52.6]} 10. exd8=Q+ {[%clk 0:02:40.2]} 10... Kxd8 {[%clk 0:01:53.1]} 11.
Nxc3 {[%clk 0:02:41.1]} 11... Re8+ {[%clk 0:01:39.7]} 12. Be3 {[%clk 0:02:32.9]}
12... Be6 {[%clk 0:01:22.1]} 13. O-O-O+ {[%clk 0:02:27.9]} 13... Kc8 {[%clk
0:00:57.6]} 14. Nb5 {[%clk 0:02:20.3]} 14... Rd8 {[%clk 0:00:55.4]} 15. Nxa7+
{[%clk 0:02:14]} 15... Kc7 {[%clk 0:00:52.3]} 16. Nb5+ {[%clk 0:02:05.6]} 16...
Kc8 {[%clk 0:00:50.6]} 17. a3 {[%clk 0:02:00.5]} 17... Nc6 {[%clk 0:00:42.4]}
18. Rxd8+ {[%clk 0:01:58.5]} 18... Kxd8 {[%clk 0:00:40.3]} 19. Be2 {[%clk
0:01:59.4]} 19... Na5 {[%clk 0:00:33.4]} 20. Rd1+ {[%clk 0:01:51.9]} 20... Kc8
{[%clk 0:00:33.5]} 21. Bb6 {[%clk 0:01:44.5]} 21... Bf6 {[%clk 0:00:31.9]} 22.
f4 {[%clk 0:01:01.8]} 22... Ra6 {[%clk 0:00:30.1]} 23. Bxa5 {[%clk 0:00:48.6]}
23... Rxa5 {[%clk 0:00:29.4]} 24. Bf3 {[%clk 0:00:43.5]} 24... Ra6 {[%clk
0:00:28.4]} 25. b3 {[%clk 0:00:34.2]} 25... Rb6 {[%clk 0:00:19]} 26. a4 {[%clk
0:00:29.4]} 26... Bf5 {[%clk 0:00:17.8]} 27. Nd6+ {[%clk 0:00:26]} 27... Rxd6
{[%clk 0:00:14.1]} 28. Rxd6 {[%clk 0:00:25.5]} 28... Be7 {[%clk 0:00:13.9]} 29.
Rd1 {[%clk 0:00:21.5]} 29... Ba3+ {[%clk 0:00:12.8]} 30. Kd2 {[%clk 0:00:21.9]}
30... Kc7 {[%clk 0:00:13]} 31. Bd5 {[%clk 0:00:20.1]} 31... f6 {[%clk
0:00:12.4]} 32. h3 {[%clk 0:00:19.4]} 32... h5 {[%clk 0:00:11.5]} 33. Kc3 {[%clk
0:00:19.6]} 33... Bd6 {[%clk 0:00:09]} 34. Rf1 {[%clk 0:00:17]} 34... Bc5 {[%clk
0:00:08.4]} 35. b4 {[%clk 0:00:16.8]} 35... Bd6 {[%clk 0:00:08.4]} 36. c5 {[%clk
0:00:16.6]} 36... Be7 {[%clk 0:00:08.6]} 37. Re1 {[%clk 0:00:15]} 37... b6
{[%clk 0:00:09.5]} 38. Rxe7+ {[%clk 0:00:14.4]} 38... Kd8 {[%clk 0:00:10.4]} 39.
Rf7 {[%clk 0:00:14.3]} 39... bxc5 {[%clk 0:00:11.3]} 40. bxc5 {[%clk 0:00:15.2]}
40... Ke8 {[%clk 0:00:10.5]} 41. Kd4 {[%clk 0:00:16]} 1-0

[Event "*** SCC Grand Prix: Titled Tuesday Blitz"]
[Site "Chess.com"]
[Date "2020.10.13"]
[Round "3"]
[White "ViditYT"]
[Black "Airquake"]
[Result "1-0"]
[WhiteElo "2850"]
[BlackElo "2637"]
[TimeControl "180+1"]
[EndTime "10:29:10 PDT"]
[Termination "ViditYT won on time"]

1. d4 {[%clk 0:03:00.9]} 1... Nf6 {[%clk 0:02:59.9]} 2. c4 {[%clk 0:03:00.3]}
2... e6 {[%clk 0:02:59.9]} 3. Nf3 {[%clk 0:02:58.9]} 3... d5 {[%clk 0:02:56.6]}
4. g3 {[%clk 0:02:58.6]} 4... Be7 {[%clk 0:02:56.7]} 5. Bg2 {[%clk 0:02:58.7]}
5... O-O {[%clk 0:02:57.2]} 6. O-O {[%clk 0:02:59.2]} 6... b6 {[%clk 0:02:57.4]}
7. cxd5 {[%clk 0:02:58.4]} 7... exd5 {[%clk 0:02:56.6]} 8. Nc3 {[%clk
0:02:58.7]} 8... Bb7 {[%clk 0:02:57.1]} 9. Bf4 {[%clk 0:02:59.1]} 9... Nbd7
{[%clk 0:02:47.3]} 10. Rc1 {[%clk 0:02:58.4]} 10... c5 {[%clk 0:02:46.7]} 11.
Ne5 {[%clk 0:02:49.9]} 11... Re8 {[%clk 0:02:28.7]} 12. e3 {[%clk 0:02:08.7]}
12... h6 {[%clk 0:01:55]} 13. h4 {[%clk 0:02:06.4]} 13... cxd4 {[%clk 0:01:53]}
14. exd4 {[%clk 0:02:05.4]} 14... Ne4 {[%clk 0:01:47.8]} 15. Nb5 {[%clk
0:01:13.4]} 15... Nxe5 {[%clk 0:01:19.1]} 16. Bxe5 {[%clk 0:01:10.3]} 16... Ba6
{[%clk 0:01:18.6]} 17. Qa4 {[%clk 0:01:06]} 17... Bxb5 {[%clk 0:01:08.1]} 18.
Qxb5 {[%clk 0:01:06.9]} 18... Bf6 {[%clk 0:01:01]} 19. Bc7 {[%clk 0:00:53]}
19... Qe7 {[%clk 0:01:01]} 20. Qxd5 {[%clk 0:00:50.6]} 20... Rac8 {[%clk
0:01:01.2]} 21. Be5 {[%clk 0:00:31.2]} 21... Bxe5 {[%clk 0:00:45.1]} 22. Rxc8
{[%clk 0:00:26]} 22... Rxc8 {[%clk 0:00:42.4]} 23. dxe5 {[%clk 0:00:24.8]} 23...
Nc5 {[%clk 0:00:37.5]} 24. Rd1 {[%clk 0:00:23.5]} 24... Na4 {[%clk 0:00:29]} 25.
Qd4 {[%clk 0:00:21.1]} 25... Nc5 {[%clk 0:00:26.8]} 26. Bh3 {[%clk 0:00:20.5]}
26... Re8 {[%clk 0:00:26.1]} 27. f4 {[%clk 0:00:18.8]} 27... g5 {[%clk
0:00:26.3]} 28. hxg5 {[%clk 0:00:18.6]} 28... hxg5 {[%clk 0:00:27.2]} 29. Kf2
{[%clk 0:00:18.3]} 29... gxf4 {[%clk 0:00:26.6]} 30. gxf4 {[%clk 0:00:15.4]}
30... Qh4+ {[%clk 0:00:26.4]} 31. Kg2 {[%clk 0:00:16]} 31... Kh7 {[%clk
0:00:19.7]} 32. Rh1 {[%clk 0:00:15.8]} 32... Rg8+ {[%clk 0:00:18.7]} 33. Kf1
{[%clk 0:00:15.9]} 33... Qe7 {[%clk 0:00:03.9]} 34. b4 {[%clk 0:00:12.5]} 34...
Ne6 {[%clk 0:00:02.7]} 35. Bxe6+ {[%clk 0:00:11.9]} 35... Kg7 {[%clk 0:00:01.7]}
36. Rg1+ {[%clk 0:00:10]} 36... Kf8 {[%clk 0:00:01.1]} 37. Rxg8+ {[%clk
0:00:10.6]} 37... Kxg8 {[%clk 0:00:02]} 38. Bg4 {[%clk 0:00:10.5]} 1-0

[Event "*** SCC Grand Prix: Titled Tuesday Blitz"]
[Site "Chess.com"]
[Date "2020.10.13"]
[Round "3"]
[White "kuban1991"]
[Black "jacky72"]
[Result "1-0"]
[WhiteElo "2806"]
[BlackElo "2555"]
[TimeControl "180+1"]
[EndTime "10:29:17 PDT"]
[Termination "kuban1991 won by checkmate"]

1. Nf3 {[%clk 0:03:00.9]} 1... Nf6 {[%clk 0:02:59.6]} 2. g3 {[%clk 0:03:01.1]}
2... g6 {[%clk 0:03:00.5]} 3. Bg2 {[%clk 0:03:02]} 3... Bg7 {[%clk 0:03:01.4]}
4. O-O {[%clk 0:03:02.5]} 4... O-O {[%clk 0:03:02.3]} 5. c4 {[%clk 0:03:03.1]}
5... d6 {[%clk 0:03:03.2]} 6. Nc3 {[%clk 0:03:03.5]} 6... Nc6 {[%clk 0:03:03.6]}
7. Rb1 {[%clk 0:03:02.2]} 7... a5 {[%clk 0:03:03.3]} 8. a3 {[%clk 0:03:01.5]}
8... e5 {[%clk 0:03:03.8]} 9. d3 {[%clk 0:03:01.6]} 9... Re8 {[%clk 0:03:04.4]}
10. Bg5 {[%clk 0:03:00.4]} 10... h6 {[%clk 0:03:04.8]} 11. Bxf6 {[%clk
0:03:00.5]} 11... Bxf6 {[%clk 0:03:05.7]} 12. b4 {[%clk 0:03:00.6]} 12... axb4
{[%clk 0:03:06.6]} 13. axb4 {[%clk 0:03:01.4]} 13... Bg7 {[%clk 0:03:07.5]} 14.
b5 {[%clk 0:03:01.3]} 14... Ne7 {[%clk 0:03:07.3]} 15. Ne1 {[%clk 0:02:58.6]}
15... c6 {[%clk 0:03:06.9]} 16. Nc2 {[%clk 0:02:58.4]} 16... d5 {[%clk
0:03:00.8]} 17. Nb4 {[%clk 0:02:52.1]} 17... Be6 {[%clk 0:02:49.3]} 18. bxc6
{[%clk 0:02:52]} 18... bxc6 {[%clk 0:02:49.2]} 19. Nxc6 {[%clk 0:02:52.1]} 19...
Nxc6 {[%clk 0:02:47.8]} 20. cxd5 {[%clk 0:02:51.8]} 20... e4 {[%clk 0:02:36.5]}
21. dxe6 {[%clk 0:02:42.7]} 21... Rxe6 {[%clk 0:02:10.4]} 22. Nxe4 {[%clk
0:02:39.8]} 22... Ra2 {[%clk 0:02:03.8]} 23. e3 {[%clk 0:02:32.8]} 23... Ne5
{[%clk 0:01:55]} 24. d4 {[%clk 0:02:31.5]} 24... Nd7 {[%clk 0:01:51.5]} 25. Qb3
{[%clk 0:02:21]} 25... Qa5 {[%clk 0:01:47.7]} 26. Qb5 {[%clk 0:02:15.1]} 26...
Qa7 {[%clk 0:01:38.5]} 27. Qb7 {[%clk 0:02:11]} 27... Rb6 {[%clk 0:01:29.8]} 28.
Qxa7 {[%clk 0:02:03.4]} 28... Rxa7 {[%clk 0:01:30.7]} 29. Nc5 {[%clk 0:01:59.4]}
29... Rxb1 {[%clk 0:01:24.4]} 30. Rxb1 {[%clk 0:01:58.7]} 30... Nf6 {[%clk
0:01:25]} 31. h3 {[%clk 0:01:54.4]} 31... Nd7 {[%clk 0:01:22]} 32. Nxd7 {[%clk
0:01:52.5]} 32... Rxd7 {[%clk 0:01:22.1]} 33. Rb8+ {[%clk 0:01:50.7]} 33... Kh7
{[%clk 0:01:21.8]} 34. Bc6 {[%clk 0:01:51.1]} 34... Rc7 {[%clk 0:01:21.7]} 35.
d5 {[%clk 0:01:48.6]} 35... Be5 {[%clk 0:01:22.3]} 36. Ra8 {[%clk 0:01:45]}
36... Kg7 {[%clk 0:01:20.7]} 37. f4 {[%clk 0:01:44.6]} 37... Bd6 {[%clk
0:01:20.7]} 38. e4 {[%clk 0:01:42.8]} 38... f6 {[%clk 0:01:21.1]} 39. Kf2 {[%clk
0:01:43.3]} 39... g5 {[%clk 0:01:21.5]} 40. Kf3 {[%clk 0:01:41.6]} 40... h5
{[%clk 0:01:19.8]} 41. h4 {[%clk 0:01:05.7]} 41... g4+ {[%clk 0:01:15]} 42. Ke3
{[%clk 0:01:05.9]} 42... Bc5+ {[%clk 0:01:15.9]} 43. Ke2 {[%clk 0:01:03.7]}
43... Ra7 {[%clk 0:01:13.6]} 44. Rxa7+ {[%clk 0:01:00.5]} 44... Bxa7 {[%clk
0:01:14.5]} 45. Be8 {[%clk 0:00:53.4]} 45... Kh6 {[%clk 0:01:08.5]} 46. Kd3
{[%clk 0:00:51.1]} 46... Bf2 {[%clk 0:01:07.6]} 47. d6 {[%clk 0:00:50.8]} 47...
Bc5 {[%clk 0:01:02.8]} 48. e5 {[%clk 0:00:49.4]} 48... fxe5 {[%clk 0:01:02.4]}
49. fxe5 {[%clk 0:00:50.3]} 49... Bf2 {[%clk 0:00:55]} 50. d7 {[%clk 0:00:46.3]}
50... Bb6 {[%clk 0:00:54.2]} 51. Ke4 {[%clk 0:00:46.6]} 51... Bd8 {[%clk
0:00:47.8]} 52. Kf5 {[%clk 0:00:45.3]} 52... Be7 {[%clk 0:00:45.7]} 53. Ke6
{[%clk 0:00:45]} 53... Bd8 {[%clk 0:00:43.4]} 54. Kf7 {[%clk 0:00:45.1]} 54...
Kh7 {[%clk 0:00:36.4]} 55. e6 {[%clk 0:00:44.9]} 55... Bc7 {[%clk 0:00:35]} 56.
e7 {[%clk 0:00:44.4]} 56... Bxg3 {[%clk 0:00:34.5]} 57. d8=Q {[%clk 0:00:38.6]}
57... Be5 {[%clk 0:00:32.3]} 58. Bd7 {[%clk 0:00:35.5]} 58... Bf6 {[%clk
0:00:30.8]} 59. Bf5+ {[%clk 0:00:35.4]} 59... Kh6 {[%clk 0:00:30.5]} 60. Qd6
{[%clk 0:00:31.6]} 60... g3 {[%clk 0:00:29.7]} 61. e8=Q {[%clk 0:00:30]} 61...
g2 {[%clk 0:00:29.9]} 62. Qh8# {[%clk 0:00:30.1]} 1-0

[Event "*** SCC Grand Prix: Titled Tuesday Blitz"]
[Site "Chess.com"]
[Date "2020.10.13"]
[Round "3"]
[White "Gabrielian_Artur"]
[Black "kreonx"]
[Result "1-0"]
[WhiteElo "2783"]
[BlackElo "2347"]
[TimeControl "180+1"]
[EndTime "10:29:17 PDT"]
[Termination "Gabrielian_Artur won on time"]

1. e4 {[%clk 0:03:00.9]} 1... c6 {[%clk 0:02:59.4]} 2. d4 {[%clk 0:03:00.2]}
2... d5 {[%clk 0:02:59.4]} 3. Nd2 {[%clk 0:03:00.2]} 3... dxe4 {[%clk
0:02:58.8]} 4. Nxe4 {[%clk 0:03:00.4]} 4... Nf6 {[%clk 0:02:59.3]} 5. Nxf6+
{[%clk 0:03:00.5]} 5... exf6 {[%clk 0:03:00.2]} 6. c3 {[%clk 0:03:00.8]} 6...
Bd6 {[%clk 0:03:00.2]} 7. Bd3 {[%clk 0:03:01]} 7... O-O {[%clk 0:02:59.9]} 8.
Qc2 {[%clk 0:03:00.9]} 8... h6 {[%clk 0:02:58]} 9. Ne2 {[%clk 0:03:00.1]} 9...
Qc7 {[%clk 0:02:58]} 10. Be3 {[%clk 0:02:57.8]} 10... Nd7 {[%clk 0:02:54.3]} 11.
O-O-O {[%clk 0:02:53.6]} 11... Re8 {[%clk 0:02:53.1]} 12. Kb1 {[%clk 0:02:53]}
12... c5 {[%clk 0:02:40.2]} 13. Ng3 {[%clk 0:02:40]} 13... cxd4 {[%clk
0:02:16.6]} 14. Bxd4 {[%clk 0:02:35.1]} 14... Bxg3 {[%clk 0:01:42.1]} 15. hxg3
{[%clk 0:02:34.5]} 15... Ne5 {[%clk 0:01:42]} 16. Bh7+ {[%clk 0:02:30]} 16...
Kh8 {[%clk 0:01:40.4]} 17. Be4 {[%clk 0:02:26.3]} 17... Be6 {[%clk 0:01:03.3]}
18. Qd2 {[%clk 0:02:02.4]} 18... Kg8 {[%clk 0:00:46.9]} 19. Rxh6 {[%clk
0:01:35.9]} 19... Ng4 {[%clk 0:00:38.4]} 20. Bh7+ {[%clk 0:01:27]} 20... Kf8
{[%clk 0:00:32.8]} 21. Rh4 {[%clk 0:01:27]} 21... g6 {[%clk 0:00:26]} 22. Rxg4
{[%clk 0:01:18.3]} 22... Bxg4 {[%clk 0:00:25.6]} 23. Bxf6 {[%clk 0:01:16.2]}
23... Re6 {[%clk 0:00:11.9]} 24. Bd8 {[%clk 0:00:53.1]} 24... Rxd8 {[%clk
0:00:07.7]} 25. Qxd8+ {[%clk 0:00:52.5]} 25... Qxd8 {[%clk 0:00:07.8]} 26. Rxd8+
{[%clk 0:00:53]} 26... Kg7 {[%clk 0:00:08.4]} 27. Bxg6 {[%clk 0:00:49.2]} 27...
Kxg6 {[%clk 0:00:07.8]} 28. f3 {[%clk 0:00:48.4]} 28... Bf5+ {[%clk 0:00:07.5]}
29. Kc1 {[%clk 0:00:49]} 29... Re2 {[%clk 0:00:07.3]} 30. g4 {[%clk 0:00:46.8]}
30... Be6 {[%clk 0:00:07.3]} 31. g3 {[%clk 0:00:42.7]} 31... Rf2 {[%clk
0:00:06.3]} 32. f4 {[%clk 0:00:39.7]} 32... Bxg4 {[%clk 0:00:06.4]} 33. Rg8+
{[%clk 0:00:39.4]} 33... Kf5 {[%clk 0:00:06.3]} 34. Rg5+ {[%clk 0:00:39.6]}
34... Ke4 {[%clk 0:00:05.9]} 35. Rxg4 {[%clk 0:00:36.2]} 35... Kd3 {[%clk
0:00:06.1]} 36. b3 {[%clk 0:00:33.8]} 36... Kxc3 {[%clk 0:00:05.5]} 37. Kd1
{[%clk 0:00:34.2]} 37... Rxa2 {[%clk 0:00:04.2]} 38. Rg7 {[%clk 0:00:34.1]}
38... Kxb3 {[%clk 0:00:04.1]} 39. Rxf7 {[%clk 0:00:33.3]} 39... b5 {[%clk
0:00:05]} 40. f5 {[%clk 0:00:29.9]} 40... b4 {[%clk 0:00:05]} 41. f6 {[%clk
0:00:30.1]} 41... Kb2 {[%clk 0:00:03.8]} 42. Re7 {[%clk 0:00:28]} 42... Ra6
{[%clk 0:00:03]} 43. Re2+ {[%clk 0:00:27.6]} 43... Kb1 {[%clk 0:00:02.8]} 44.
Rf2 {[%clk 0:00:27.8]} 44... Rd6+ {[%clk 0:00:02.8]} 45. Ke2 {[%clk 0:00:27.4]}
45... Rd8 {[%clk 0:00:02.9]} 46. f7 {[%clk 0:00:28]} 46... Rf8 {[%clk
0:00:03.1]} 47. Kd3 {[%clk 0:00:28.4]} 47... a5 {[%clk 0:00:01.9]} 48. Kc4
{[%clk 0:00:28.8]} 1-0

[Event "*** SCC Grand Prix: Titled Tuesday Blitz"]
[Site "Chess.com"]
[Date "2020.10.13"]
[Round "3"]
[White "zmeeed67"]
[Black "rugbyclub"]
[Result "0-1"]
[WhiteElo "2344"]
[BlackElo "2227"]
[TimeControl "180+1"]
[EndTime "10:29:17 PDT"]
[Termination "rugbyclub won by resignation"]

1. e4 {[%clk 0:03:00.9]} 1... e6 {[%clk 0:02:54]} 2. Nf3 {[%clk 0:03:00.4]} 2...
d5 {[%clk 0:02:42.1]} 3. e5 {[%clk 0:03:00.4]} 3... c5 {[%clk 0:02:38.3]} 4. b4
{[%clk 0:03:00.3]} 4... cxb4 {[%clk 0:02:36.5]} 5. a3 {[%clk 0:03:00.3]} 5...
bxa3 {[%clk 0:02:36]} 6. Nxa3 {[%clk 0:02:59.7]} 6... Nc6 {[%clk 0:02:35.2]} 7.
c3 {[%clk 0:02:50.3]} 7... Nge7 {[%clk 0:02:34.3]} 8. d4 {[%clk 0:02:50.2]} 8...
Nf5 {[%clk 0:02:30.6]} 9. Bd3 {[%clk 0:02:50.5]} 9... Be7 {[%clk 0:02:29.1]} 10.
O-O {[%clk 0:02:50.9]} 10... a6 {[%clk 0:02:18.2]} 11. Nc2 {[%clk 0:02:50.1]}
11... Bd7 {[%clk 0:02:15.1]} 12. Ne3 {[%clk 0:02:49.5]} 12... Nxe3 {[%clk
0:02:13.4]} 13. Bxe3 {[%clk 0:02:49.1]} 13... O-O {[%clk 0:02:13.4]} 14. Qb1
{[%clk 0:02:47.9]} 14... g6 {[%clk 0:02:05.4]} 15. Qxb7 {[%clk 0:02:45.5]} 15...
Qc8 {[%clk 0:01:54.1]} 16. Bxa6 {[%clk 0:02:30.8]} 16... Qxb7 {[%clk 0:01:51.6]}
17. Bxb7 {[%clk 0:02:30.6]} 17... Rab8 {[%clk 0:01:51.9]} 18. Rfb1 {[%clk
0:02:14.8]} 18... f6 {[%clk 0:01:49.3]} 19. exf6 {[%clk 0:01:53.8]} 19... Bxf6
{[%clk 0:01:48.7]} 20. Bh6 {[%clk 0:01:50.4]} 20... Rfe8 {[%clk 0:01:45.5]} 21.
Bf4 {[%clk 0:01:49.4]} 21... e5 {[%clk 0:01:44.7]} 22. Bxc6 {[%clk 0:01:46.5]}
22... Rxb1+ {[%clk 0:01:39.9]} 23. Rxb1 {[%clk 0:01:45.1]} 23... Bxc6 {[%clk
0:01:40]} 24. Bxe5 {[%clk 0:01:43.6]} 24... Be7 {[%clk 0:01:37]} 25. h4 {[%clk
0:01:38.5]} 25... Kf7 {[%clk 0:01:28.8]} 26. Rb6 {[%clk 0:01:37.7]} 26... Ba4
{[%clk 0:01:27.5]} 27. Rb7 {[%clk 0:01:32.9]} 27... Ke6 {[%clk 0:01:23.3]} 28.
Rb6+ {[%clk 0:01:08.4]} 28... Kf5 {[%clk 0:01:17.1]} 29. Nd2 {[%clk 0:00:58]}
29... Bxh4 {[%clk 0:01:10]} 30. Rd6 {[%clk 0:00:49.5]} 30... Rc8 {[%clk
0:00:54.2]} 31. g3 {[%clk 0:00:40.8]} 31... Be7 {[%clk 0:00:47.8]} 32. Rxd5
{[%clk 0:00:37.1]} 32... Rxc3 {[%clk 0:00:46.9]} 33. Ra5 {[%clk 0:00:34.5]}
33... Bd1 {[%clk 0:00:36.4]} 34. d5 {[%clk 0:00:24.5]} 34... Kxe5 {[%clk
0:00:28.1]} 35. f4+ {[%clk 0:00:20.6]} 35... Kd4 {[%clk 0:00:20.1]} 36. Kf2
{[%clk 0:00:17.5]} 36... Bc5 {[%clk 0:00:17.9]} 37. Ke1 {[%clk 0:00:17]} 37...
Bg4 {[%clk 0:00:16.6]} 38. Rxc5 {[%clk 0:00:14.2]} 38... Kxc5 {[%clk 0:00:15.8]}
39. Ne4+ {[%clk 0:00:13.5]} 39... Kd4 {[%clk 0:00:16.3]} 40. Nxc3 {[%clk
0:00:13.2]} 40... Kxc3 {[%clk 0:00:17]} 41. d6 {[%clk 0:00:12.9]} 41... Kd4
{[%clk 0:00:17.5]} 42. Kf2 {[%clk 0:00:13.5]} 42... Ke4 {[%clk 0:00:17.5]} 43.
Kg2 {[%clk 0:00:12.8]} 43... h5 {[%clk 0:00:17.5]} 44. Kf2 {[%clk 0:00:12.1]}
44... Kd3 {[%clk 0:00:17.2]} 45. Kg2 {[%clk 0:00:11.2]} 45... Ke2 {[%clk
0:00:17.2]} 46. Kh2 {[%clk 0:00:11.1]} 46... Kf3 {[%clk 0:00:17.2]} 0-1

[Event "*** SCC Grand Prix: Titled Tuesday Blitz"]
[Site "Chess.com"]
[Date "2020.10.13"]
[Round "3"]
[White "yourstrulyme"]
[Black "Shivagami"]
[Result "1-0"]
[WhiteElo "2425"]
[BlackElo "2233"]
[TimeControl "180+1"]
[EndTime "10:29:18 PDT"]
[Termination "yourstrulyme won by resignation"]

1. d4 {[%clk 0:03:00.9]} 1... Nf6 {[%clk 0:02:58.8]} 2. Nf3 {[%clk 0:03:00.6]}
2... d5 {[%clk 0:02:57.2]} 3. Bf4 {[%clk 0:03:00.4]} 3... c5 {[%clk 0:02:56.8]}
4. c3 {[%clk 0:03:00.5]} 4... Nc6 {[%clk 0:02:56.5]} 5. Nbd2 {[%clk 0:03:00.5]}
5... cxd4 {[%clk 0:02:51]} 6. cxd4 {[%clk 0:03:00.1]} 6... Bf5 {[%clk
0:02:51.3]} 7. e3 {[%clk 0:02:58.5]} 7... e6 {[%clk 0:02:46.3]} 8. Bb5 {[%clk
0:02:46.4]} 8... Bd6 {[%clk 0:02:31.7]} 9. Rc1 {[%clk 0:02:36.9]} 9... Rc8
{[%clk 0:01:59.8]} 10. Ne5 {[%clk 0:02:04.3]} 10... Bxe5 {[%clk 0:01:33.6]} 11.
Bxe5 {[%clk 0:01:51.1]} 11... O-O {[%clk 0:01:31.9]} 12. Bxc6 {[%clk 0:01:46.4]}
12... bxc6 {[%clk 0:01:30.1]} 13. O-O {[%clk 0:01:41.9]} 13... Ne4 {[%clk
0:01:26.4]} 14. Nxe4 {[%clk 0:01:32.3]} 14... Bxe4 {[%clk 0:01:25.9]} 15. f3
{[%clk 0:01:29.8]} 15... Bg6 {[%clk 0:01:25.4]} 16. Qa4 {[%clk 0:01:27.9]} 16...
Qb6 {[%clk 0:01:02.5]} 17. Qa3 {[%clk 0:01:20.1]} 17... Rfd8 {[%clk 0:00:55.3]}
18. Rc5 {[%clk 0:01:19.2]} 18... f6 {[%clk 0:00:45.5]} 19. Bg3 {[%clk
0:01:15.1]} 19... Rd7 {[%clk 0:00:43.7]} 20. Rfc1 {[%clk 0:01:13.9]} 20... Rb7
{[%clk 0:00:43.1]} 21. b3 {[%clk 0:01:12.6]} 21... Be8 {[%clk 0:00:39.4]} 22.
Ra5 {[%clk 0:00:49]} 22... Ra8 {[%clk 0:00:22.3]} 23. Bd6 {[%clk 0:00:47.9]}
23... Qd8 {[%clk 0:00:15.2]} 24. Bc5 {[%clk 0:00:45.7]} 24... Kf7 {[%clk
0:00:14.3]} 25. Bxa7 {[%clk 0:00:37.2]} 25... Qc7 {[%clk 0:00:11.7]} 26. Bb6
{[%clk 0:00:34.2]} 26... Rxa5 {[%clk 0:00:09.5]} 27. Bxa5 {[%clk 0:00:34]} 27...
Ra7 {[%clk 0:00:06.2]} 28. Rc5 {[%clk 0:00:30.9]} 28... Qb7 {[%clk 0:00:06]} 29.
Qc1 {[%clk 0:00:23.6]} 29... Bd7 {[%clk 0:00:03.4]} 30. Qc3 {[%clk 0:00:22]}
30... Qa8 {[%clk 0:00:03.4]} 31. b4 {[%clk 0:00:19]} 31... Qb7 {[%clk
0:00:03.6]} 32. a4 {[%clk 0:00:18.4]} 32... Qa6 {[%clk 0:00:04]} 33. Qc2 {[%clk
0:00:17.3]} 33... Qb7 {[%clk 0:00:03.2]} 34. Kf2 {[%clk 0:00:17]} 34... Qa8
{[%clk 0:00:03.7]} 35. g4 {[%clk 0:00:16.5]} 35... Qb7 {[%clk 0:00:04.2]} 36.
Qxh7 {[%clk 0:00:16]} 36... Rxa5 {[%clk 0:00:02.4]} 37. Qh5+ {[%clk 0:00:14.5]}
37... g6 {[%clk 0:00:02]} 38. Qh7+ {[%clk 0:00:14.2]} 38... Kf8 {[%clk 0:00:02]}
39. Rxa5 {[%clk 0:00:13.4]} 39... Qxb4 {[%clk 0:00:01.6]} 40. Ra8+ {[%clk
0:00:13]} 1-0

[Event "*** SCC Grand Prix: Titled Tuesday Blitz"]
[Site "Chess.com"]
[Date "2020.10.13"]
[Round "3"]
[White "elisak43"]
[Black "Chessdude1987"]
[Result "1-0"]
[WhiteElo "2515"]
[BlackElo "2255"]
[TimeControl "180+1"]
[EndTime "10:29:20 PDT"]
[Termination "elisak43 won on time"]

1. e4 {[%clk 0:03:00.9]} 1... e6 {[%clk 0:03:00.1]} 2. Nc3 {[%clk 0:03:01.3]}
2... d5 {[%clk 0:02:59.9]} 3. Nf3 {[%clk 0:03:01.5]} 3... Nf6 {[%clk 0:02:59.2]}
4. e5 {[%clk 0:02:53.7]} 4... Nfd7 {[%clk 0:02:59.4]} 5. d4 {[%clk 0:02:54.6]}
5... c5 {[%clk 0:02:59.7]} 6. dxc5 {[%clk 0:02:53]} 6... Nc6 {[%clk 0:02:58.2]}
7. Bf4 {[%clk 0:02:52.6]} 7... Bxc5 {[%clk 0:02:58.3]} 8. Bd3 {[%clk 0:02:52.7]}
8... f6 {[%clk 0:02:58.7]} 9. Qe2 {[%clk 0:02:49]} 9... fxe5 {[%clk 0:02:48.9]}
10. Nxe5 {[%clk 0:02:47.9]} 10... Ndxe5 {[%clk 0:02:48.5]} 11. Bxe5 {[%clk
0:02:47.6]} 11... Nxe5 {[%clk 0:02:46.1]} 12. Qxe5 {[%clk 0:02:47.6]} 12... O-O
{[%clk 0:02:45.3]} 13. O-O {[%clk 0:02:44.8]} 13... Qf6 {[%clk 0:02:27.7]} 14.
Qxf6 {[%clk 0:02:25.3]} 14... Rxf6 {[%clk 0:02:26.6]} 15. Rae1 {[%clk
0:02:14.2]} 15... Bd7 {[%clk 0:02:26.1]} 16. Re2 {[%clk 0:02:13.2]} 16... Raf8
{[%clk 0:02:23.2]} 17. g3 {[%clk 0:02:05]} 17... a6 {[%clk 0:02:14.2]} 18. Kg2
{[%clk 0:02:04.6]} 18... Bc6 {[%clk 0:02:14.1]} 19. f4 {[%clk 0:02:02]} 19...
Bd4 {[%clk 0:01:59.7]} 20. Nd1 {[%clk 0:01:55]} 20... Bc5 {[%clk 0:01:54.2]} 21.
Rfe1 {[%clk 0:01:48.2]} 21... Bd7 {[%clk 0:01:35.7]} 22. Ne3 {[%clk 0:01:32.5]}
22... h5 {[%clk 0:01:04.2]} 23. f5 {[%clk 0:01:20.4]} 23... exf5 {[%clk
0:01:01]} 24. Nxd5 {[%clk 0:01:08.9]} 24... Bc6 {[%clk 0:01:01.1]} 25. c4 {[%clk
0:01:09.8]} 25... f4 {[%clk 0:00:54.3]} 26. gxf4 {[%clk 0:00:38.7]} 26... Rxf4
{[%clk 0:00:54]} 27. Be4 {[%clk 0:00:38.3]} 27... Rf2+ {[%clk 0:00:42.7]} 28.
Kh1 {[%clk 0:00:37.8]} 28... Rxe2 {[%clk 0:00:42.1]} 29. Rxe2 {[%clk 0:00:38.1]}
29... Rf1+ {[%clk 0:00:42.1]} 30. Kg2 {[%clk 0:00:38.5]} 30... Ra1 {[%clk
0:00:37.9]} 31. b3 {[%clk 0:00:37.8]} 31... g5 {[%clk 0:00:35.6]} 32. Nf6+
{[%clk 0:00:31.7]} 32... Kf7 {[%clk 0:00:35.2]} 33. Bxc6 {[%clk 0:00:32.6]}
33... bxc6 {[%clk 0:00:32.4]} 34. Nxh5 {[%clk 0:00:29.4]} 34... Rg1+ {[%clk
0:00:29.3]} 35. Kf3 {[%clk 0:00:28.3]} 35... g4+ {[%clk 0:00:29.4]} 36. Ke4
{[%clk 0:00:27.5]} 36... Kg6 {[%clk 0:00:26]} 37. Nf4+ {[%clk 0:00:25.2]} 37...
Kf6 {[%clk 0:00:25.3]} 38. Nd3 {[%clk 0:00:20.5]} 38... Ba7 {[%clk 0:00:23.4]}
39. Ne5 {[%clk 0:00:18.7]} 39... g3 {[%clk 0:00:20.6]} 40. hxg3 {[%clk
0:00:17.6]} 40... Rxg3 {[%clk 0:00:19.8]} 41. Nxc6 {[%clk 0:00:17.9]} 41... Bc5
{[%clk 0:00:20]} 42. Kd5 {[%clk 0:00:17.6]} 42... Rg5+ {[%clk 0:00:19.3]} 43.
Re5 {[%clk 0:00:17.8]} 43... Rxe5+ {[%clk 0:00:12.5]} 44. Nxe5 {[%clk
0:00:17.8]} 44... Ba3 {[%clk 0:00:11.2]} 45. Nd3 {[%clk 0:00:16.5]} 45... Ke7
{[%clk 0:00:11.1]} 46. Kc6 {[%clk 0:00:16.9]} 46... a5 {[%clk 0:00:09.9]} 47.
Kb5 {[%clk 0:00:17.1]} 1-0